lending/lending_fUSD_20251121
["ID","MTS","AMOUNT","RATE_DAILY","PERIOD"]
[394585311,1763739038620,-500.0,0.00016438,2]
[394585313,1763739038634,-1680.0,0.00016438,2]
[394585315,1763739038646,-197.40274276,0.00016438,2]
[394585317,1763739038657,-195.0,0.00016439,2]
[394585319,1763739038678,-160.7,0.00016467,2]
[394585321,1763739038697,-2500.0,0.00016545,2]
[394585322,1763739038707,-2500.0,0.00016545,2]
[394585323,1763739038717,-2500.0,0.00016545,2]
[394585324,1763739038728,-2500.0,0.00016545,2]
[394585325,1763739038739,-1178.50205662,0.00016545,2]
[394585326,1763739038750,-214.4526466,0.00016545,2]
[394585327,1763739038760,-250.0,0.00016545,2]
[394585328,1763739038770,-195.0,0.00016546,2]
[394585329,1763739038781,-300.0,0.00016546,2]
[394585330,1763739038794,-300.0,0.00016546,2]
[394585331,1763739038805,-300.0,0.00016546,2]
[394585332,1763739038815,-300.0,0.00016546,2]
[394585333,1763739038825,-300.0,0.00016546,2]
[394585334,1763739038837,-195.0,0.00016548,2]
[394585335,1763739038849,-250.0,0.00016548,2]
[394585336,1763739038860,-500.0,0.00016549,2]
[394585337,1763739038870,-1206.65,0.00016549,2]
[394585338,1763739038881,-1400.12,0.00016557,2]
[394585339,1763739038892,-1773.6899917,0.00016599,2]
[394585340,1763739038903,-151.0,0.00016656,2]
[394585341,1763739038912,-166.66,0.00016662,2]
[394585342,1763739038923,-1043.5,0.00016689,2]
[394585343,1763739038933,-1000.0,0.000167,6]
[394585344,1763739038943,-1000.0,0.00016797,2]
[394585345,1763739038954,-2000.0,0.000168,6]
[394585346,1763739038964,-164.98640551,0.00016802,2]
[394585347,1763739038974,-217.01893082,0.00016803,2]
[394585348,1763739038984,-150.0,0.0001683,2]
[394585349,1763739038994,-200.0,0.0001683,2]
[394585350,1763739039004,-3100.0,0.000169,6]
[394585351,1763739039014,-1055.4820752,0.00016922,2]
[394585352,1763739039024,-3570.58006891,0.00016922,2]
[394585353,1763739039034,-1773.6899917,0.00016924,2]
[394585354,1763739039045,-1043.52476848,0.00016963,2]
[394585355,1763739039056,-150.0,0.00016972,2]
[394585356,1763739039066,-500.0,0.00016973,2]
[394585357,1763739039076,-500.0,0.00016973,2]
[394585358,1763739039086,-500.0,0.00016973,2]
[394585359,1763739039096,-500.0,0.00016973,2]
[394585360,1763739039106,-500.0,0.00016973,2]
[394585361,1763739039117,-365.08659521,0.00016973,2]
[394585362,1763739039127,-500.0,0.00016973,2]
[394585363,1763739039137,-154.81537229,0.00016973,2]
[394585364,1763739039147,-232.07579854,0.00016973,2]
[394585365,1763739039157,-500.0,0.00016973,2]
[394585366,1763739039167,-1219.71735426,0.0001699,2]
[394585367,1763739039176,-151.0,0.00016997,2]
[394585368,1763739039186,-166.66,0.00016999,2]
[394585369,1763739039196,-1081.7436251,0.00016999,5]
[394585370,1763739039206,-1081.7436251,0.00016999,5]
[394585371,1763739039217,-1081.7436251,0.00016999,5]
[394585372,1763739039227,-250.0,0.00017,2]
[394585373,1763739039248,-2000.0,0.00017,2]
[394585374,1763739039259,-2005479.49156586,0.00017,2]
[394585375,1763739039269,-217.01893082,0.00017022,2]
[394585376,1763739039279,-1055.48207517,0.00017085,2]
[394585377,1763739039291,-207.44889093,0.00017106,2]
[394585378,1763739039302,-164.98640551,0.00017168,2]
[394585379,1763739039313,-426.56612961,0.000172,2]
[394585380,1763739039323,-217.01893082,0.00017242,2]
[394585381,1763739039334,-1055.48207517,0.00017248,2]
[394585382,1763739039344,-1773.6899917,0.0001725,2]
[394585383,1763739039355,-1619.98191611,0.00017256,2]
[394585384,1763739039366,-433.0,0.00017275,2]
[394585385,1763739039377,-163.00731315,0.00017282,2]
[394585386,1763739039387,-2177.0,0.00017318,2]
[394585387,1763739039397,-583.77562454,0.00017333,2]
[394585388,1763739039407,-166.66,0.00017335,2]
[394585389,1763739039417,-1328.86,0.00017403,2]
[394585390,1763739039427,-575.0,0.00017403,2]
[394585391,1763739039437,-2659.0,0.00017403,2]
[394585392,1763739039447,-1055.48207517,0.00017411,2]
[394585393,1763739039457,-18914.5196,0.00017413,2]
[394585394,1763739039466,-150.0,0.00017459,2]
[394585395,1763739039476,-150.0,0.00017459,2]
[394585396,1763739039486,-150.0,0.00017459,2]
[394585397,1763739039496,-217.01893082,0.00017461,2]
[394585398,1763739039506,-4100.0,0.000175,6]
[394585399,1763739039518,-1081.7436251,0.0001752,5]
[394585400,1763739039529,-209.18141817,0.00017521,2]
[394585401,1763739039542,-1000.0,0.00017521,2]
[394585402,1763739039552,-580.65522907,0.00017521,2]
[394585403,1763739039562,-1000.0,0.00017521,2]
[394585404,1763739039572,-915.16633773,0.00017521,2]
[394585405,1763739039583,-1000.0,0.00017521,2]
[394585406,1763739039593,-164.98640551,0.00017534,2]
[394585407,1763739039603,-2177.0,0.00017569,2]
[394585408,1763739039613,-1055.48207517,0.00017574,2]
[394585409,1763739039624,-1773.6899917,0.00017575,2]
[394585410,1763739039634,-5200.0,0.000176,6]
[394585411,1763739039645,-1601.0,0.00017608,2]
[394585412,1763739039655,-822.0,0.00017608,2]
[394585413,1763739039670,-783.0,0.00017608,2]
[394585414,1763739039680,-1256.0,0.00017608,2]
[394585415,1763739039690,-908.0,0.00017608,2]
[394585416,1763739039700,-1192.0,0.00017608,2]
[394585417,1763739039712,-1237.37352836,0.00017644,2]
[394585418,1763739039722,-166.66,0.00017672,2]
[394585419,1763739039734,-217.01893082,0.00017681,2]
[394585420,1763739039744,-403.0,0.000177,5]
[394585421,1763739039755,-1000.0,0.000177,6]
[394585422,1763739039766,-1337.46,0.00017726,2]
[394585423,1763739039777,-1055.48207517,0.00017737,2]
[394585424,1763739039788,-550.0,0.00017741,2]
[394585425,1763739039800,-1000.0,0.000178,6]
[394585426,1763739039811,-4004.376,0.00017808,2]
[394585427,1763739039821,-302.373,0.00017808,2]
[394585428,1763739039831,-1368.71524,0.0001782,2]
[394585429,1763739039841,-550.0,0.00017829,2]
[394585431,1763739039852,-550.0,0.0001783,2]
[394585433,1763739039862,-500.0,0.00017856,2]
[394585435,1763739039871,-500.0,0.00017856,2]
[394585436,1763739039882,-200.0,0.00017856,2]
[394585437,1763739039891,-218.28985519,0.000179,2]
[394585438,1763739039901,-5000.0,0.000179,2]
[394585439,1763739039911,-217.01893082,0.000179,2]
[394585440,1763739039921,-1055.48207517,0.000179,2]
[394585441,1763739039931,-164.98640551,0.000179,2]
[394585442,1763739039941,-1773.6899917,0.000179,2]
[394585443,1763739039951,-1000.0,0.000179,6]
[394585444,1763739039961,-716.9092892,0.000179,2]
[394585445,1763739039972,-4548.12566144,0.000179,2]
[394585446,1763739039982,-9307.11525434,0.000179,2]
[394585447,1763739039992,-587.0,0.00017902,2]
[394585448,1763739040002,-587.0,0.00017902,2]
[394585449,1763739040012,-550.0,0.00017941,2]
[394585450,1763739040023,-500.0,0.00017945,2]
[394585451,1763739040035,-500.0,0.00017945,2]
[394585452,1763739040046,-500.0,0.00017945,2]
[394585453,1763739040056,-150.0,0.00017945,2]
[394585454,1763739040066,-1310.0,0.00017945,2]
[394585455,1763739040077,-150.0,0.00017945,2]
[394585456,1763739040087,-500.0,0.00017945,2]
[394585457,1763739040099,-150.0,0.00017945,2]
[394585458,1763739040110,-500.0,0.00017973,2]
[394585459,1763739040120,-501.42210277,0.00017973,2]
[394585460,1763739040131,-500.0,0.00017973,2]
[394585461,1763739040142,-503.52814199,0.00017973,2]
[394585462,1763739040152,-436.43063603,0.00017973,2]
[394585463,1763739040163,-500.0,0.00017973,2]
[394585464,1763739040174,-366.0135026,0.00017973,2]
[394585465,1763739040184,-501.10903681,0.00017973,2]
[394585466,1763739040194,-500.0,0.00017973,2]
[394585467,1763739040203,-500.0,0.00017973,2]
[394585468,1763739040213,-500.0,0.00017973,2]
[394585469,1763739040223,-500.0,0.00017973,2]
[394585470,1763739040234,-500.0,0.00017973,2]
[394585471,1763739040244,-500.0,0.00017973,2]
[394585472,1763739040254,-500.0,0.00017973,2]
[394585473,1763739040264,-500.7838585,0.00017973,2]
[394585474,1763739040274,-500.0,0.00017973,2]
[394585475,1763739040283,-500.0,0.00017973,2]
[394585476,1763739040298,-501.28182449,0.00017973,2]
[394585477,1763739040308,-500.0,0.00017973,2]
[394585478,1763739040318,-500.0,0.00017973,2]
[394585479,1763739040328,-500.0,0.00017973,2]
[394585480,1763739040338,-500.0,0.00017973,2]
[394585481,1763739040348,-500.0,0.00017973,2]
[394585482,1763739040357,-500.0,0.00017973,2]
[394585483,1763739040367,-500.0,0.00017973,2]
[394585484,1763739040376,-500.0,0.00017973,2]
[394585485,1763739040387,-1219.71735426,0.0001799,2]
[394585486,1763739040397,-1219.71735426,0.0001799,2]
[394585487,1763739040408,-151.0,0.00017997,2]
[394585488,1763739040426,-500.0,0.00017999,2]
[394585490,1763739040436,-500.0,0.00017999,2]
[394585492,1763739040446,-500.0,0.00017999,2]
[394585493,1763739040455,-500.0,0.00017999,2]
[394585495,1763739040465,-500.0,0.00017999,2]
[394585496,1763739040475,-500.0,0.00017999,2]
[394585497,1763739040485,-300.0,0.00017999,2]
[394585498,1763739040495,-500.0,0.00017999,2]
[394585499,1763739040505,-500.0,0.00017999,2]
[394585500,1763739040515,-500.0,0.00017999,2]
[394585501,1763739040524,-500.0,0.00017999,2]
[394585502,1763739040535,-500.0,0.00017999,2]
[394585503,1763739040549,-500.0,0.00017999,2]
[394585504,1763739040559,-500.0,0.00017999,2]
[394585505,1763739040569,-500.0,0.00017999,2]
[394585506,1763739040579,-500.0,0.00017999,2]
[394585507,1763739040589,-500.0,0.00017999,2]
[394585508,1763739040600,-500.0,0.00017999,2]
[394585509,1763739040610,-500.0,0.00017999,2]
[394585510,1763739040620,-500.0,0.00017999,2]
[394585511,1763739040630,-300.0,0.00017999,2]
[394585512,1763739040640,-666.0,0.00017999,2]
[394585513,1763739040650,-666.0,0.00017999,2]
[394585514,1763739040661,-300.0,0.00017999,2]
[394585515,1763739040676,-500.0,0.00017999,2]
[394585516,1763739040686,-500.0,0.00017999,2]
[394585517,1763739040696,-421.4278406,0.00017999,2]
[394585518,1763739040707,-209.28124065,0.00017999,2]
[394585519,1763739040717,-150.0,0.00017999,2]
[394585520,1763739040727,-300.0,0.00017999,2]
[394585521,1763739040738,-666.0,0.00017999,2]
[394585522,1763739040748,-300.0,0.00017999,2]
[394585523,1763739040757,-500.0,0.00017999,2]
[394585524,1763739040767,-500.0,0.00017999,2]
[394585525,1763739040777,-500.0,0.00017999,2]
[394585526,1763739040789,-500.0,0.00017999,2]
[394585527,1763739040799,-500.0,0.00017999,2]
[394585528,1763739040809,-500.0,0.00017999,2]
[394585529,1763739040819,-500.0,0.00017999,2]
[394585530,1763739040828,-500.0,0.00017999,2]
[394585531,1763739040838,-500.0,0.00017999,2]
[394585532,1763739040850,-500.0,0.00017999,2]
[394585533,1763739040859,-500.0,0.00017999,2]
[394585534,1763739040869,-500.0,0.00017999,2]
[394585535,1763739040879,-500.0,0.00017999,2]
[394585536,1763739040888,-500.0,0.00017999,2]
[394585537,1763739040899,-500.0,0.00017999,2]
[394585538,1763739040909,-500.0,0.00017999,2]
[394585539,1763739040919,-500.0,0.00017999,2]
[394585540,1763739040928,-500.0,0.00017999,2]
[394585541,1763739040938,-500.0,0.00017999,2]
[394585542,1763739040949,-206.74716056,0.00017999,2]
[394585543,1763739040960,-300.0,0.00017999,2]
[394585544,1763739040970,-666.0,0.00017999,2]
[394585545,1763739040981,-1206.65,0.00017999,2]
[394585546,1763739040991,-1206.65,0.00017999,2]
[394585547,1763739041002,-1206.65,0.00017999,2]
[394585548,1763739041012,-1206.65,0.00017999,2]
[394585549,1763739041022,-1206.65,0.00017999,2]
[394585550,1763739041032,-1081.7436251,0.00017999,5]
[394585551,1763739041043,-1081.7436251,0.00017999,5]
[394585552,1763739041052,-1081.74362506,0.00017999,5]
[394585553,1763739041063,-1081.7436251,0.00017999,5]
[394585554,1763739041073,-1081.7436251,0.00017999,5]
[394585555,1763739041083,-1206.65,0.00017999,2]
[394585556,1763739041094,-5520.0,0.00018,2]
[394585557,1763739041105,-1384114.95379218,0.00018,2]
[394585558,1763739041116,-1181.54080599,0.00018,2]
[394585559,1763739041126,-167.18070033,0.00018,2]
[394585560,1763739041137,-150.0,0.00018,2]
[394585561,1763739041147,-4212.24232343,0.00018,2]
[394585562,1763739041157,-150.0,0.00018,2]
[394585563,1763739041167,-4983.32857961,0.00018,2]
[394585564,1763739041177,-150.0,0.00018,2]
[394585565,1763739041187,-14449.53955014,0.00018,2]
[394585566,1763739041197,-150.0,0.00018,2]
[394585567,1763739041206,-4632.94724005,0.00018,2]
[394585568,1763739041215,-529.41,0.00018,2]
[394585569,1763739041228,-4766.8355461,0.00018,2]
[394585570,1763739041240,-14080.920703,0.00018,2]
[394585571,1763739041251,-151.0,0.00018,2]
[394585572,1763739041262,-151.0,0.00018,2]
[394585573,1763739041272,-5480512.97682105,0.00018,2]
[394585574,1763739041864,-1106.62388718,0.00016634,2]
[394585575,1763739041874,-500.0,0.00017945,2]
[394585576,1763739041884,-6831.80611282,0.00018,2]
[394585577,1763739041933,-1453.229987,0.00018,2]
[394585578,1763739041946,-452.0805652,0.00018,2]
[394585614,1763739045925,-157.75007783,0.00016634,2]
[394585615,1763739045939,-683.09431209,0.00016634,2]
[394585616,1763739045949,-229.84407253,0.00016634,2]
[394585617,1763739045958,-315.37489709,0.00016634,2]
[394585618,1763739045972,-818.10571463,0.00016634,2]
[394585619,1763739045981,-1095.69429954,0.00016634,2]
[394585620,1763739045990,-1031.60044923,0.00016634,2]
[394585621,1763739045999,-489.47234831,0.00017403,2]
[394585622,1763739046013,-300.0,0.00017403,2]
[394585623,1763739046069,-196.52765169,0.00017403,2]
[394585624,1763739046078,-1606.0,0.00017403,2]
[394585625,1763739046088,-2402.47234831,0.00018,2]
[394585721,1763739102439,500.0,0.00015045,2]
[394585722,1763739102980,500.0,0.00015045,2]
[394585723,1763739127069,500.0,0.00015045,2]
[394585724,1763739134739,1052.98,0.00014946,2]
[394585725,1763739137573,500.0,0.00015045,2]
[394585726,1763739151819,722.88,0.00015045,2]
[394585727,1763739163104,6224.15,0.00014946,2]
[394585728,1763739163137,10000.01,0.00014946,2]
[394585729,1763739163172,10000.01,0.00014946,2]
[394585730,1763739163203,10000.01,0.00014946,2]
[394585731,1763739163236,10000.01,0.00014946,2]
[394585732,1763739163270,10000.01,0.00014946,2]
[394585733,1763739163302,10000.01,0.00014946,2]
[394585734,1763739163336,10000.01,0.00014946,2]
[394585735,1763739163369,10000.01,0.00014946,2]
[394585736,1763739163403,10000.01,0.00014946,2]
[394585737,1763739171554,-500.0,0.00014944,2]
[394585738,1763739171587,-500.0,0.00014944,2]
[394585739,1763739176625,-8000.01,0.00014946,2]
[394585740,1763739176779,-10000.01,0.00014946,2]
[394585741,1763739176974,-10000.01,0.00014946,2]
[394585742,1763739177402,-10000.01,0.00014946,2]
[394585743,1763739177431,-10000.01,0.00014946,2]
[394585744,1763739177499,-10000.01,0.00014946,2]
[394585745,1763739177584,-10000.01,0.00014946,2]
[394585746,1763739177742,-10000.01,0.00014946,2]
[394585747,1763739177892,-10000.01,0.00014946,2]
[394585748,1763739178035,-10000.01,0.00014946,2]
[394585749,1763739186610,-300.0,0.00014945,2]
[394585750,1763739186644,-150.0,0.00014945,2]
[394585751,1763739186782,-9100.01,0.00014946,2]
[394585752,1763739186844,-10000.01,0.00014946,2]
[394585753,1763739187039,-10000.01,0.00014946,2]
[394585754,1763739187342,-10000.01,0.00014946,2]
[394585755,1763739187670,-10000.01,0.00014946,2]
[394585756,1763739188084,-10000.01,0.00014946,2]
[394585757,1763739188406,-10000.01,0.00014946,2]
[394585758,1763739188655,-10000.01,0.00014946,2]
[394585759,1763739188876,-10000.01,0.00014946,2]
[394585760,1763739195222,-10000.01,0.00014946,2]
[394585761,1763739195359,-10000.01,0.00014946,2]
[394585762,1763739195743,-10000.01,0.00014946,2]
[394585763,1763739195823,-10000.01,0.00014946,2]
[394585764,1763739195894,-10000.01,0.00014946,2]
[394585765,1763739196046,-10000.01,0.00014946,2]
[394585766,1763739196082,-10000.01,0.00014946,2]
[394585767,1763739196206,-10000.01,0.00014946,2]
[394585768,1763739196362,-10000.01,0.00014946,2]
[394585769,1763739317244,-600.0,0.000173,6]
[394585770,1763739317272,-400.0,0.000174,6]
[394585771,1763739318698,-800.0,0.000174,6]
[394585772,1763739318746,-200.0,0.000175,6]
[394585773,1763739319073,151.0,0.00022,30]
[394585774,1763739319431,-1000.0,0.000175,6]
[394585775,1763739319483,781.91515005,0.00022,30]
[394585776,1763739320111,-700.0,0.000175,6]
[394585777,1763739320138,-300.0,0.000176,6]
[394585778,1763739320799,-1000.0,0.000176,6]
[394585779,1763739320966,152.0,0.00022,30]
[394585780,1763739321485,-1000.0,0.000176,6]
[394585781,1763739321546,152.0,0.00022,30]
[394585782,1763739338258,-200.0,0.000176,6]
[394585783,1763739338288,-100.0,0.000177,6]
[394585784,1763739352748,1000.0,0.00014,2]
[394585785,1763739495763,166.0,0.00022,30]
[394585786,1763739496289,166.0,0.00022,30]
[394585787,1763739618997,1246.0,0.00022,30]
[394585788,1763739619762,151.0,0.00022,30]
[394585789,1763739620311,151.0,0.00022,30]
[394585790,1763739620546,1246.0,0.00022,30]
[394585791,1763739621055,154.35323267,0.00022,30]
[394585792,1763739621692,1246.0,0.00022,30]
[394585793,1763739622986,1246.0,0.00022,30]
[394585794,1763739623581,1246.0,0.00022,30]
[394585795,1763739626221,1246.0,0.00022,30]
[394585796,1763739627214,1246.0,0.00022,30]
[394585797,1763739760625,254.85,0.00014629,2]
[394585798,1763739810845,166.0,0.00022,30]
[394585799,1763739811513,166.0,0.00022,30]
[394585800,1763739812166,166.0,0.00022,30]
[394585801,1763739812795,253.61607805,0.00022,30]
[394585803,1763739821030,-186.03654233,0.00014745,2]
[394585804,1763739821067,-250.0,0.00014757,2]
[394585805,1763739821104,-195.0,0.0001477,2]
[394585806,1763739821146,-195.0,0.00014795,2]
[394585807,1763739821182,-195.0,0.00014824,2]
[394585808,1763739821220,-164.06876657,0.00014844,2]
[394585809,1763739821257,-1200.0,0.00014844,2]
[394585810,1763739821293,-300.0,0.00014844,2]
[394585811,1763739821328,-1200.0,0.00014844,2]
[394585812,1763739821366,-172.4986946,0.00014844,2]
[394585813,1763739821401,-300.0,0.00014844,2]
[394585814,1763739821435,-300.0,0.00014845,2]
[394585815,1763739821470,-300.0,0.00014845,2]
[394585816,1763739821818,-84.801993,0.00014845,2]
[394585817,1763739825009,-215.198007,0.00014845,2]
[394585818,1763739825064,-150.0,0.00014845,2]
[394585819,1763739825208,-9269.613986,0.00014846,2]
[394585820,1763739832939,-355.104386,0.00014846,2]
[394585821,1763739832972,-9289.801228,0.00014846,2]
[394585822,1763739895921,2402.64,7.778e-05,2]
[394585823,1763739896190,1446.47730911,8.187e-05,2]
[394585824,1763739896212,956.16269089,8.187e-05,2]
[394585825,1763739896663,2402.64,8.596e-05,2]
[394585826,1763739896716,2173.13455522,9.006e-05,2]
[394585827,1763739896738,229.50544478,9.006e-05,2]
[394585828,1763739896846,2402.64,9.415e-05,2]
[394585829,1763739897067,2402.64,9.824e-05,2]
[394585830,1763739897480,497.15180133,0.00010234,2]
[394585831,1763739897502,1905.48819867,0.00010234,2]
[394585832,1763739897703,2402.64,0.00010643,2]
[394585833,1763739897906,1223.80904744,0.00011052,2]
[394585834,1763739897932,1178.83095256,0.00011052,2]
[394585835,1763739898365,2402.64,0.00011462,2]
[394585836,1763739898567,1950.46629355,0.00011871,2]
[394585837,1763739898592,452.17370645,0.00011871,2]
[394585838,1763739898801,2402.64,0.0001228,2]
[394585839,1763739899201,2402.64,0.0001269,2]
[394585840,1763739899613,274.48353966,0.00013099,2]
[394585841,1763739899641,2128.15646034,0.00013099,2]
[394585842,1763739899837,2402.64,0.00013508,2]
[394585843,1763739900048,1001.14078577,0.00013918,2]
[394585844,1763739900073,1401.49921423,0.00013918,2]
[394585845,1763739900264,2402.64,0.00014327,2]
[394585846,1763739918185,1246.0,0.00022,30]
[394585847,1763739918312,151.0,0.00022,30]
[394585848,1763739918454,151.0,0.00022,30]
[394585849,1763739918768,1246.0,0.00022,30]
[394585850,1763739918932,151.0,0.00022,30]
[394585851,1763739919056,151.0,0.00022,30]
[394585852,1763739919763,151.0,0.00022,30]
[394585853,1763739919835,1246.0,0.00022,30]
[394585854,1763739919970,151.0,0.00022,30]
[394585855,1763739920047,1246.0,0.00022,30]
[394585856,1763739920520,1246.0,0.00022,30]
[394585857,1763739920575,151.0,0.00022,30]
[394585858,1763739921090,1246.0,0.00022,30]
[394585859,1763739921183,168.3857876,0.00022,30]
[394585860,1763739921626,1246.0,0.00022,30]
[394585861,1763739922218,1246.0,0.00022,30]
[394585862,1763739922801,1215.79214042,0.00022,30]
[394585863,1763739923793,151.0,0.00022,30]
[394585864,1763739924427,151.0,0.00022,30]
[394585865,1763739924972,151.0,0.00022,30]
[394585866,1763739925633,151.0,0.00022,30]
[394585867,1763739929341,151.0,0.00022,30]
[394585868,1763739930123,151.0,0.00022,30]
[394585869,1763739930649,151.0,0.00022,30]
[394585870,1763739931199,151.0,0.00022,30]
[394585871,1763739932128,151.0,0.00022,30]
[394585872,1763739932755,151.0,0.00022,30]
[394585873,1763739933442,151.0,0.00022,30]
[394585874,1763739933997,151.0,0.00022,30]
[394585875,1763739934964,151.0,0.00022,30]
[394585876,1763739935453,151.0,0.00022,30]
[394585877,1763739935979,151.0,0.00022,30]
[394585878,1763739937029,151.0,0.00022,30]
[394585879,1763739939438,151.0,0.00022,30]
[394585880,1763739940691,151.0,0.00022,30]
[394585881,1763739941382,151.0,0.00022,30]
[394585882,1763739941912,151.0,0.00022,30]
[394585883,1763739942444,151.0,0.00022,30]
[394585884,1763739943000,151.0,0.00022,30]
[394585885,1763739943694,151.0,0.00022,30]
[394585886,1763739944276,151.0,0.00022,30]
[394585887,1763739951161,151.0,0.00022,30]
[394585888,1763739952155,151.0,0.00022,30]
[394585889,1763739952416,229.78882936,0.00022,30]
[394586791,1763740083719,-2402.64,0.00014736,2]
[394586792,1763740083755,-186.03654233,0.00014745,2]
[394586793,1763740083792,-1200.0,0.00014844,2]
[394586794,1763740083828,-300.0,0.00014844,2]
[394586795,1763740083863,-622.65691534,0.00014845,2]
[394586796,1763740084017,-577.34308466,0.00014845,2]
[394586797,1763740087678,-300.0,0.00014845,2]
[394586798,1763740087715,-150.0,0.00014845,2]
[394586799,1763740087750,-1276.9467,0.00014846,2]
[394586800,1763740087843,-6546.1166,0.00014846,2]
[394586801,1763740094801,-10000.01,0.00014846,2]
[394586802,1763740165509,-300.0,0.00014845,2]
[394586803,1763740165541,-195.0,0.00014846,2]
[394586804,1763740165627,-9010.01,0.00014846,2]
[394586805,1763740165830,-3527.1799,0.00014846,2]
[394586806,1763740165865,-445.6502,0.00014846,2]
[394586807,1763740165918,-2054.3498,0.00014846,2]
[394586808,1763740166043,-218.28985519,0.00014873,2]
[394586809,1763740166087,-4293.81261569,0.00014873,2]
[394586810,1763740166164,-975.80505824,0.00014873,2]
[394586811,1763740166241,-161.26642523,0.00014873,2]
[394586812,1763740166273,-195.0,0.00014882,2]
[394586813,1763740166305,-284.31,0.00014936,2]
[394586814,1763740166339,-500.0,0.00014944,2]
[394586815,1763740166379,-500.0,0.00014945,2]
[394586816,1763740166411,-500.0,0.00014945,2]
[394586817,1763740166445,-500.0,0.00014945,2]
[394586818,1763740166479,-500.0,0.00014945,2]
[394586819,1763740166512,-500.0,0.00014945,2]
[394586820,1763740166548,-817.76,0.00014945,2]
[394586821,1763740166756,-1281.99,0.00014945,2]
[394586822,1763740166791,-500.0,0.00014945,2]
[394586823,1763740166828,-500.0,0.00014945,2]
[394586824,1763740166861,-752.46,0.00014945,2]
[394586825,1763740166897,-224.18435526,0.00014945,2]
[394586826,1763740166931,-500.0,0.00014945,2]
[394586827,1763740166964,-170.95009189,0.00014945,2]
[394586828,1763740167005,-500.0,0.00014945,2]
[394586829,1763740167044,-500.0,0.00014945,2]
[394586830,1763740167273,-500.0,0.00014945,2]
[394586831,1763740167313,-500.0,0.00014945,2]
[394586832,1763740167352,-500.0,0.00014945,2]
[394586833,1763740167391,-500.0,0.00014945,2]
[394586834,1763740167428,-500.0,0.00014945,2]
[394586835,1763740167465,-500.0,0.00014945,2]
[394586836,1763740167509,-500.0,0.00014945,2]
[394586837,1763740167547,-500.0,0.00014945,2]
[394586838,1763740167585,-287.43718949,0.00014945,2]
[394586839,1763740167622,-500.0,0.00014945,2]
[394586840,1763740167820,-500.0,0.00014945,2]
[394586841,1763740167859,-500.0,0.00014945,2]
[394586842,1763740167892,-292.43688618,0.00014945,2]
[394586843,1763740168218,-178.03328477,0.00014945,2]
[394586844,1763740168257,-350.0,0.00014945,2]
[394586845,1763740168300,-500.0,0.00014945,2]
[394586846,1763740168338,-500.0,0.00014945,2]
[394586847,1763740168376,-500.0,0.00014945,2]
[394586848,1763740168413,-500.0,0.00014945,2]
[394586849,1763740168451,-500.0,0.00014945,2]
[394586850,1763740168489,-500.0,0.00014945,2]
[394586851,1763740168556,-500.0,0.00014945,2]
[394586852,1763740168594,-500.0,0.00014945,2]
[394586853,1763740168633,-500.0,0.00014945,2]